bitfinex-derivatives/quotes_ETHF0:USTF0_20251003
["timestamp","ask_amount","ask_price","bid_price","bid_amount"]
[1759461022660,6.30785875,4545.7,4545.6,1.4510369]
[1759461022869,7.06525875,4545.7,4545.6,0.0024369]
[1759461024574,7.06525875,4545.7,4545.6,0.8605369]
[1759461024773,7.06525875,4545.7,4545.6,0.0024369]
[1759461027961,12.06525875,4545.7,4545.6,0.0024369]
[1759461028163,12.06525875,4545.7,4544.7,0.8261]
[1759461028367,1.8393,4544.8,4544.5,0.3448]
[1759461028575,1.1076,4544.6,4544.5,1.7553]
[1759461028777,3.784,4545.1,4545.0,2.3041]
[1759461028970,3.2078,4545.1,4545.0,2.3041]
[1759461029168,3.4288,4545.1,4545.0,2.3041]
[1759461029463,0.221,4545.1,4545.0,2.30657046]
[1759461031269,4.96635875,4545.7,4545.0,1.48047046]
[1759461031577,3.20944436,4545.7,4545.6,1.9744]
[1759461031775,3.43044436,4545.7,4545.6,1.9744]
[1759461033067,4.00664436,4545.7,4545.6,1.9744]
[1759461033469,3.20944436,4545.7,4545.6,1.9744]
[1759461033669,0.00164436,4545.7,4545.6,10.1822]
[1759461033865,1.7209176,4546.5,4545.6,10.1822]
[1759461034063,1.7209176,4546.5,4546.4,1.9329]
[1759461034473,2.8483176,4546.5,4546.0,0.8474]
[1759461034669,0.7294,4546.0,4545.1,0.8474]
[1759461034870,0.7294,4545.8,4545.1,0.8474]
[1759461035074,0.221,4545.7,4545.1,0.8474]
[1759461036278,3.9372,4545.6,4545.0,0.00247046]
[1759461036474,3.9372,4545.1,4545.0,0.00247046]
[1759461036679,4.1582,4545.1,4545.0,0.00247046]
[1759461037182,0.7294,4544.9,4544.0,0.8474]
[1759461037373,0.7294,4544.4,4544.0,0.8474]
[1759461037573,0.7294,4544.2,4544.0,0.8474]
[1759461037984,0.221,4544.3,4543.8,0.8474]
[1759461038279,0.7294,4544.2,4543.9,0.8474]
[1759461038782,0.221,4544.3,4543.9,0.8474]
[1759461038984,0.7294,4544.2,4543.9,0.8474]
[1759461040284,3.2078,4544.0,4543.9,0.8474]
[1759461040481,3.4288,4544.0,4543.9,0.8474]
[1759461041872,4.1582,4544.0,4543.9,0.8474]
[1759461043978,3.4288,4544.0,4543.9,0.8474]
[1759461044484,3.4288,4544.0,4543.9,1.9329]
[1759461044677,3.2078,4544.0,4543.9,1.9329]
[1759461044985,3.4288,4544.0,4543.9,1.9329]
[1759461045181,3.2078,4544.0,4543.9,1.9329]
[1759461045485,3.789,4544.7,4544.6,1.9329]
[1759461045677,5.2856,4544.7,4544.6,1.3795]
[1759461045878,5.2856,4544.7,4544.6,0.8474]
[1759461046179,5.2856,4544.7,4544.1,0.8474]
[1759461046679,5.2856,4544.7,4543.9,0.8474]
[1759461046680,0.5812,4544.0,4543.9,0.8474]
[1759461046887,1.3484,4544.0,4543.8,0.00206772]
[1759461047187,1.8568,4543.9,4543.8,0.00206772]
[1759461047872,5.7294,4543.9,4542.7,3.2078]
[1759461048081,3.2078,4542.8,4542.2,0.8474]
[1759461048273,3.2078,4542.8,4542.6,0.8474]
[1759461048274,0.221,4542.7,4542.6,0.8474]
[1759461048476,3.2078,4542.8,4541.5,0.3296]
[1759461048477,0.7274,4542.4,4541.5,0.3296]
[1759461048685,3.4288,4542.3,4541.6,0.8474]
[1759461048885,3.4288,4542.3,4542.1,0.8474]
[1759461048886,0.00202578,4542.3,4542.1,0.8474]
[1759461049491,0.00202578,4542.3,4542.2,0.8474]
[1759461049677,0.00202578,4542.3,4542.0,0.3296]
[1759461049881,3.2078,4542.2,4542.1,0.8474]
[1759461050081,0.00202578,4542.3,4542.1,5.8474]
[1759461050281,0.00202578,4542.3,4542.2,9.0552]
[1759461051775,0.00202578,4542.3,4542.2,9.2762]
[1759461051980,0.00202578,4542.3,4542.2,9.0552]
[1759461052180,0.00202578,4542.3,4542.2,4.2762]
[1759461052588,0.00202578,4542.3,4542.2,0.8474]
[1759461053579,0.7274,4542.2,4541.6,0.00219967]
[1759461053781,0.7274,4542.2,4541.6,0.84959967]
[1759461054190,3.20982578,4542.3,4541.6,0.84959967]
[1759461054388,3.20982578,4542.3,4542.0,0.3296]
[1759461054598,0.221,4542.2,4542.1,0.8474]
[1759461055788,3.20982578,4542.3,4542.1,0.8474]
[1759461055994,3.93722578,4542.3,4542.1,0.8474]
[1759461056293,3.93722578,4542.3,4541.6,0.84959967]
[1759461056294,3.20982578,4542.3,4541.6,0.84959967]
[1759461056895,3.2078,4541.8,4541.7,0.8474]
[1759461058793,0.221,4542.1,4541.6,0.00219967]
[1759461059189,0.221,4542.1,4541.7,0.8474]
[1759461059385,3.2078,4541.9,4541.6,0.00219967]
[1759461059592,3.2078,4541.9,4541.7,0.8474]
[1759461059789,3.2078,4541.9,4541.6,0.00219967]
[1759461059995,3.2078,4541.9,4541.7,0.8474]
[1759461060191,3.2078,4541.9,4541.6,0.00219967]
[1759461060597,3.2078,4541.9,4541.7,0.8474]
[1759461060796,0.221,4541.8,4541.7,0.8474]
[1759461062297,0.9194,4541.8,4541.7,0.8474]
[1759461062698,0.221,4541.8,4541.7,0.8474]
[1759461063097,0.6984,4541.7,4541.6,0.00219967]
[1759461063292,5.6984,4541.7,4541.6,0.00219967]
[1759461063796,5.6984,4541.7,4540.7,0.8717]
[1759461064100,3.9062,4540.9,4540.7,0.8717]
[1759461064302,0.221,4540.8,4540.7,0.8717]
[1759461064507,0.6984,4540.7,4540.1,0.8717]
[1759461064802,0.221,4540.8,4540.1,0.8742684]
[1759461066192,0.6984,4540.7,4540.1,0.8742684]
[1759461067608,0.221,4540.8,4540.1,0.8742684]
[1759461067800,0.6984,4540.7,4540.1,0.8742684]
[1759461068201,3.2078,4540.4,4540.1,0.0025684]
[1759461068508,0.6984,4540.2,4540.1,0.0025684]
[1759461069199,5.6984,4540.2,4540.1,0.0025684]
[1759461069798,5.6984,4540.2,4539.1,0.8717]
[1759461070003,3.2078,4539.3,4538.7,0.8717]
[1759461070301,0.221,4539.2,4538.7,0.8717]
[1759461070494,0.221,4539.2,4538.6,0.8717]
[1759461070901,3.9037,4539.3,4538.6,0.87400398]
[1759461071102,34.58,4539.2,4538.6,0.87400398]
[1759461071301,34.58,4539.2,4539.1,0.8717]
[1759461071498,3.2078,4539.3,4538.6,0.00230398]
[1759461071701,3.2078,4538.8,4538.7,0.8717]
[1759461071902,3.43136209,4538.8,4538.7,0.8717]
[1759461074114,0.6959,4538.7,4538.6,0.00230398]
[1759461074608,40.2819,4538.7,4537.8,0.8717]
[1759461074804,3.9037,4538.0,4537.2,0.8717]
[1759461075012,4.1247,4538.0,4537.2,0.8717]
[1759461075207,9.1247,4538.0,4537.2,0.8717]
[1759461075413,38.4907,4538.0,4537.6,0.8717]
[1759461075609,3.9037,4538.0,4537.9,0.02389471]
[1759461075805,3.9037,4538.0,4536.7,0.8717]
[1759461075806,0.672,4537.9,4536.7,0.8717]
[1759461076012,3.2078,4537.1,4537.0,1.1906]
[1759461076216,3.4288,4537.1,4537.0,1.1906]
[1759461076416,3.4288,4537.1,4537.0,0.8717]
[1759461076906,3.8798,4537.1,4537.0,0.00271118]
[1759461077106,4.1008,4537.1,4537.0,0.00271118]
[1759461077919,3.4288,4537.1,4537.0,0.87441118]
[1759461078116,3.2078,4537.1,4537.0,0.87441118]
[1759461078317,3.4288,4537.1,4537.0,0.87441118]
[1759461079113,3.2078,4537.1,4537.0,1.19331118]
[1759461079320,3.4288,4537.1,4537.0,1.19331118]
[1759461079719,5.20912744,4537.1,4537.0,1.19331118]
[1759461079915,5.88112744,4537.1,4537.0,0.87441118]
[1759461080213,10.88112744,4537.1,4537.0,0.00271118]
[1759461080408,10.66012744,4537.1,4537.0,0.00271118]
[1759461080611,0.1452,4537.0,4536.0,1.1906]
[1759461080813,0.672,4536.4,4536.0,1.1906]
[1759461081008,0.672,4536.2,4536.0,0.8717]
[1759461081317,3.2078,4536.5,4536.1,0.8717]
[1759461081515,0.221,4536.4,4536.1,0.87431774]
[1759461081715,1.78032744,4537.1,4536.5,0.3189]
[1759461081923,3.2078,4537.2,4537.1,0.8717]
[1759461082217,3.4288,4537.2,4537.1,0.8717]
[1759461082418,5.88866315,4537.2,4536.6,0.8717]
[1759461082715,3.2078,4536.7,4536.2,0.8717]
[1759461082915,0.893,4536.6,4536.1,0.00261774]
[1759461083124,0.672,4536.5,4536.2,0.8717]
[1759461083420,0.221,4536.4,4536.2,0.8717]
[1759461083817,0.221,4536.4,4536.1,0.00261774]
[1759461084117,0.672,4536.3,4536.1,0.00261774]
[1759461084323,3.2078,4536.7,4536.5,0.3189]
[1759461084618,3.2078,4536.7,4536.6,0.8717]
[1759461084826,3.4288,4536.7,4536.6,0.8717]
[1759461085915,3.2078,4536.7,4536.6,0.8717]
[1759461086423,3.4288,4536.7,4536.1,0.00261774]
[1759461086623,3.4288,4536.7,4536.1,0.79511774]
[1759461086817,3.858,4536.2,4536.1,0.00261774]
[1759461087017,4.079,4536.2,4536.1,0.00261774]
[1759461087320,3.4288,4536.2,4536.1,0.00261774]
[1759461087624,3.2078,4536.7,4536.6,0.7925]
[1759461087829,3.4288,4536.7,4536.6,0.7925]
[1759461090626,3.4288,4536.7,4536.1,0.00261774]
[1759461091419,3.858,4536.2,4536.1,0.00261774]
[1759461091621,3.4288,4536.2,4536.1,0.83321774]
[1759461092923,3.2078,4536.8,4536.5,0.3124]
[1759461093228,0.221,4536.7,4536.6,0.8306]
[1759461093428,1.78798137,4537.2,4536.6,0.8306]
[1759461093429,1.78798137,4537.2,4537.0,0.3124]
[1759461093624,3.2078,4537.3,4537.1,0.8306]
[1759461093921,0.221,4537.2,4537.1,0.8306]
[1759461095217,3.2078,4537.3,4537.1,5.0]
[1759461095423,3.2078,4537.3,4537.2,0.8306]
[1759461095623,3.2078,4537.9,4537.5,0.3124]
[1759461095826,3.2078,4537.9,4537.6,0.8306]
[1759461096630,0.221,4538.2,4538.1,0.8306]
[1759461096829,3.2078,4538.4,4538.1,0.8306]
[1759461096830,0.221,4538.3,4538.1,0.8306]
[1759461098230,0.221,4538.3,4538.0,0.3124]
[1759461098530,0.8646,4538.3,4538.1,0.8306]
[1759461098732,0.221,4538.3,4538.1,0.8306]
[1759461098926,0.221,4538.3,4538.0,0.3124]
[1759461099130,0.221,4538.3,4538.1,0.8306]
[1759461100625,0.221,4538.3,4538.0,0.3124]
[1759461100825,0.221,4538.3,4538.1,0.8306]
[1759461101025,3.2078,4538.4,4538.1,0.8306]
[1759461101528,0.221,4538.5,4538.3,0.8306]
[1759461102030,0.22356209,4538.8,4538.3,0.8306]
[1759461102631,0.22356209,4538.8,4538.1,0.8306]
[1759461103330,0.6436,4538.7,4537.7,4.0384]
[1759461103533,0.6436,4538.4,4537.7,4.0384]
[1759461103829,0.221,4538.3,4537.7,0.8306]
[1759461104021,0.221,4538.3,4537.2,3.2078]
[1759461104022,0.6436,4537.9,4537.2,0.8306]
[1759461104225,0.221,4537.8,4537.2,0.8306]
[1759461104422,0.221,4537.8,4536.7,3.2078]
[1759461104624,3.2078,4537.3,4536.7,0.8306]
[1759461104833,0.6436,4537.1,4536.5,0.3124]
[1759461105131,0.6436,4537.1,4536.3,0.8306]
[1759461105534,0.6436,4536.7,4535.9,0.8306]
[1759461105734,0.6436,4536.2,4535.9,0.8306]
[1759461106335,0.6436,4536.2,4535.5,0.3124]
[1759461106535,4.0724,4536.3,4536.1,0.83321774]
[1759461107734,0.6436,4536.2,4536.1,0.00261774]
[1759461108635,3.4288,4536.3,4536.2,0.8306]
[1759461111539,3.2078,4536.9,4536.2,0.8306]
[1759461111739,3.2078,4536.9,4536.5,0.3124]
[1759461111939,0.221,4536.8,4536.6,0.8306]
[1759461112428,3.2078,4536.9,4536.6,0.8306]
[1759461112832,0.221,4537.1,4537.0,0.3124]
[1759461113139,0.221,4537.1,4537.0,0.8306]
[1759461113339,0.8646,4537.1,4537.0,0.8306]
[1759461113840,0.221,4537.1,4537.0,0.8306]
[1759461114028,0.221,4537.1,4537.0,1.143]
[1759461114833,3.2078,4537.5,4537.1,0.8306]
[1759461115930,0.00256209,4538.8,4538.0,0.3124]
[1759461116132,0.221,4538.5,4538.1,0.8306]
[1759461116338,0.6436,4538.4,4538.1,0.8306]
[1759461116636,0.6436,4538.4,4538.0,0.3124]
[1759461116830,0.221,4538.5,4538.0,0.3124]
[1759461117227,0.6436,4538.4,4538.1,0.8306]
[1759461117431,0.221,4538.5,4538.1,0.8306]
[1759461117928,3.2078,4538.7,4538.1,0.8306]
[1759461118238,0.221,4538.6,4538.5,0.3124]
[1759461118427,0.221,4538.6,4538.5,1.143]
[1759461121036,0.221,4538.6,4538.1,0.8306]
[1759461121037,0.6436,4538.5,4538.1,0.8306]
[1759461121242,3.2078,4538.2,4538.1,0.8306]
[1759461121443,4.0724,4538.2,4538.1,0.8306]
[1759461122038,3.4288,4538.2,4538.1,0.8306]
[1759461122743,4.0442,4538.2,4538.1,0.8306]
[1759461123340,4.0442,4538.2,4537.6,0.7789]
[1759461125845,3.4288,4538.2,4537.2,0.7789]
[1759461126045,0.6154,4538.1,4537.2,0.7789]
[1759461126446,0.221,4538.0,4537.2,0.7789]
[1759461126640,0.221,4538.0,4537.5,0.3126]
[1759461126841,0.749,4538.0,4537.9,0.5423]
[1759461127040,0.749,4538.0,4537.9,1.3212]
[1759461127442,1.284,4538.0,4537.9,1.3212]
[1759461128849,1.063,4538.0,4537.9,1.3212]
[1759461129051,1.284,4538.0,4537.9,1.3212]
[1759461129351,0.6154,4537.9,4537.1,0.7789]
[1759461129545,3.2078,4537.7,4537.1,0.7789]
[1759461129749,0.221,4537.6,4537.1,0.7789]
[1759461130044,0.221,4537.6,4536.5,0.3124]
[1759461130351,0.221,4537.6,4537.5,1.0915]
[1759461132050,0.221,4537.6,4537.5,2.1793]
[1759461134349,3.2078,4537.7,4537.5,1.4004]
[1759461134655,3.2078,4537.7,4537.6,1.8667]
[1759461134946,0.221,4538.1,4538.0,0.3126]
[1759461135151,0.221,4538.1,4538.0,2.1793]
[1759461136447,3.2078,4538.4,4538.1,0.7789]
[1759461136648,3.7358,4538.4,4538.3,1.3212]
[1759461136848,3.9568,4538.4,4538.3,1.3212]
[1759461137551,4.4918,4538.4,4538.3,1.3212]
[1759461139649,3.9568,4538.4,4538.3,1.8667]
[1759461139850,5.1072,4538.4,4538.3,1.3212]
[1759461140256,5.1072,4538.4,4538.3,0.7789]
[1759461141855,1.6784,4537.6,4537.5,0.7789]
[1759461142049,5.1072,4537.6,4537.5,0.7789]
[1759461142249,4.4918,4537.6,4537.5,1.6338]
[1759461143048,5.1072,4537.6,4537.1,0.7789]
[1759461143445,4.4918,4537.6,4536.4,0.221]
[1759461144153,5.1072,4537.6,4536.3,3.2078]
[1759461144456,1.063,4537.1,4537.0,1.6336]
[1759461144658,1.6784,4537.1,4537.0,0.7789]
[1759461145357,4.8862,4537.1,4537.0,0.7789]
[1759461146553,4.2708,4537.1,4537.0,1.5926]
[1759461146953,4.2708,4537.1,4537.0,2.1008]
[1759461148451,4.2708,4537.1,4537.0,0.7789]
[1759461148651,4.8648,4537.1,4537.0,0.7789]
[1759461149850,4.8648,4537.1,4536.1,0.00261774]
[1759461150155,1.0489,4536.3,4536.2,0.7765]
[1759461150457,1.0489,4536.3,4536.2,1.7956]
[1759461150662,0.221,4536.4,4536.3,1.2874]
[1759461150968,0.221,4536.4,4536.3,1.7956]
[1759461151255,0.221,4536.7,4536.5,0.3028]
[1759461151561,0.5067,4536.7,4536.6,1.7956]
[1759461151749,0.7277,4536.7,4536.6,1.7956]
[1759461151955,0.221,4536.7,4536.6,1.7956]
[1759461153056,4.2315,4537.1,4537.0,1.6482]
[1759461153256,4.4525,4537.1,4537.0,1.6482]
[1759461153656,4.4525,4537.1,4537.0,2.1837]
[1759461153962,4.2315,4537.1,4537.0,2.1837]
[1759461154162,4.4525,4537.1,4537.0,2.1837]
[1759461154957,4.2315,4537.1,4537.0,2.1837]
[1759461155158,4.4525,4537.1,4537.0,2.1837]
[1759461155365,1.2447,4537.1,4537.0,2.1837]
[1759461155961,1.0237,4537.1,4537.0,2.1837]
[1759461156566,1.2447,4537.1,4537.0,2.1837]
[1759461157156,5.0401,4537.1,4536.5,0.3028]
[1759461157465,1.6113,4536.6,4536.5,1.6234]
[1759461157963,1.0237,4536.6,4536.5,1.6234]
[1759461158167,1.0237,4536.6,4536.5,2.1589]
[1759461158967,0.221,4536.8,4536.6,0.823]
[1759461159267,1.0237,4536.2,4536.1,1.32321774]
[1759461159469,1.0237,4536.2,4536.1,1.85871774]
[1759461162356,0.221,4536.3,4536.2,0.823]
[1759461162561,0.7365,4536.3,4536.2,1.8561]
[1759461162961,0.221,4536.3,4536.2,1.8561]
[1759461163367,3.2078,4536.5,4536.2,1.8561]
[1759461163566,0.221,4536.8,4536.7,1.0331]
[1759461163763,0.221,4536.8,4536.7,1.8561]
[1759461163764,0.7365,4536.8,4536.7,1.8561]
[1759461164266,1.6113,4536.6,4536.5,1.1506]
[1759461164668,1.0237,4536.6,4536.5,2.1837]
[1759461165469,1.0237,4536.3,4536.2,1.3206]
[1759461165673,1.2447,4536.3,4536.2,1.3206]
[1759461166173,1.2447,4536.3,4536.2,1.8561]
[1759461166376,0.221,4536.3,4536.2,1.8561]
[1759461167468,3.2078,4536.5,4536.2,1.8561]
[1759461167675,3.2078,4536.5,4536.4,1.0331]
[1759461167875,3.2078,4536.5,4536.4,1.8561]
[1759461168171,4.2315,4536.5,4536.4,1.8561]
[1759461169773,4.4525,4536.5,4536.4,1.8561]
[1759461173572,1.2447,4536.5,4536.4,1.8561]
[1759461173972,1.0237,4536.2,4536.1,0.82561774]
[1759461174175,1.8323,4536.2,4536.1,0.82561774]
[1759461174473,1.8323,4536.2,4536.1,1.32321774]
[1759461174666,1.2447,4536.2,4536.1,1.32321774]
[1759461175068,1.8323,4536.2,4536.1,1.85871774]
[1759461175269,1.8323,4536.2,4536.1,1.32321774]
[1759461177177,1.8323,4536.2,4536.1,0.82561774]
[1759461177881,1.8323,4536.2,4536.1,1.32321774]
[1759461178374,1.2447,4536.2,4536.1,1.85871774]
[1759461179881,0.221,4536.2,4536.1,1.85871774]
[1759461182477,0.221,4537.0,4536.5,2.1685]
[1759461182684,0.221,4536.9,4536.6,0.8081]
[1759461182883,0.221,4536.9,4536.8,1.0606]
[1759461183176,3.2078,4537.1,4536.8,1.0606]
[1759461183382,3.2078,4537.1,4537.0,2.1685]
[1759461183582,3.4288,4537.1,4537.0,2.1685]
[1759461183774,4.78771436,4537.7,4537.0,1.3604]
[1759461183973,3.2078,4537.7,4537.5,1.3604]
[1759461184173,3.2078,4537.7,4537.6,1.8687]
[1759461185385,3.4288,4537.7,4537.6,1.8687]
[1759461185579,4.4574,4537.7,4537.6,1.8687]
[1759461185784,9.4574,4537.7,4537.1,0.8081]
[1759461185976,4.2364,4537.2,4537.1,1.3309]
[1759461186178,4.4574,4537.2,4537.1,1.8687]
[1759461186686,3.4288,4537.2,4537.1,1.8687]
[1759461188082,3.2078,4538.0,4537.5,0.2998]
[1759461188384,4.7967,4538.0,4537.9,0.8081]
[1759461188688,1.0286,4537.6,4537.5,0.8226]
[1759461188881,1.2496,4537.6,4537.5,1.6307]
[1759461189781,1.2496,4537.6,4537.5,2.1685]
[1759461190384,0.7435,4537.6,4537.5,2.1685]
[1759461190583,0.221,4537.6,4537.5,2.1685]
[1759461190982,3.2078,4538.0,4537.6,0.8081]
[1759461191186,3.2078,4538.0,4537.9,1.8687]
[1759461191582,0.221,4538.1,4537.9,1.8687]
[1759461191881,0.221,4538.1,4537.5,0.2998]
[1759461191882,0.221,4538.1,4538.0,2.1685]
[1759461192087,1.2496,4538.1,4538.0,2.1685]
[1759461193282,0.221,4538.1,4538.0,2.1685]
[1759461193480,3.2078,4538.5,4538.1,0.8081]
[1759461193782,3.2078,4538.5,4538.0,1.3604]
[1759461193783,0.221,4538.4,4538.3,1.8687]
[1759461195486,0.7435,4538.4,4538.3,1.8687]
[1759461196682,1.8099,4538.4,4538.3,1.3309]
[1759461198194,1.2496,4538.4,4538.3,1.3309]
[1759461198394,1.2496,4538.4,4538.3,1.8687]
[1759461201393,1.0286,4538.4,4538.3,1.8687]
[1759461201696,1.2496,4538.4,4538.3,1.8687]
[1759461201996,0.221,4538.4,4538.3,1.8687]
[1759461202393,0.7435,4538.4,4538.3,1.8687]
[1759461202600,1.2496,4538.4,4538.3,1.8687]
[1759461203497,1.0286,4538.4,4538.3,1.8687]
[1759461204099,1.2496,4538.4,4538.3,1.8687]
[1759461204491,1.0286,4538.4,4538.3,1.8687]
[1759461204692,0.7435,4538.4,4538.3,1.8687]
[1759461205300,0.221,4538.4,4538.3,1.8687]
[1759461205600,3.2078,4538.5,4538.3,1.8687]
[1759461205799,0.221,4538.4,4538.3,1.8391]
[1759461206595,1.2626,4538.4,4538.3,1.8391]
[1759461206899,1.2626,4538.4,4538.3,1.3013]
[1759461207199,1.2626,4538.4,4538.3,1.8347]
[1759461208297,1.8023,4538.4,4537.5,0.2998]
[1759461208491,5.0108,4537.9,4537.5,0.2998]
[1759461208697,5.0108,4537.9,4536.8,3.2078]
[1759461208698,1.803,4537.7,4536.3,3.2078]
[1759461208899,0.221,4537.8,4537.0,1.342]
[1759461208900,3.73,4537.1,4537.0,1.342]
[1759461209099,4.4704,4537.1,4537.0,1.342]
[1759461209498,5.2318,4537.1,4537.0,1.342]
[1759461210296,5.2318,4537.1,4537.0,1.0422]
[1759461210500,5.2318,4537.1,4537.0,1.8207]
[1759461211105,5.2318,4537.1,4537.0,2.1297]
[1759461212402,5.2318,4537.1,4537.0,1.8207]
[1759461216608,5.2318,4537.1,4537.0,0.5088]
[1759461217110,5.2318,4537.1,4537.0,1.2432]
[1759461218115,5.2318,4537.1,4537.0,0.5088]
[1759461218510,1.0047,4536.7,4536.6,1.2435]
[1759461218806,1.9675,4536.7,4536.6,1.7429]
[1759461226017,0.221,4536.7,4536.6,1.7429]
[1759461226219,1.9675,4536.7,4536.6,1.7429]
[1759461229618,1.2257,4536.7,4536.6,1.7429]
[1759461230109,1.9675,4536.7,4536.6,1.7429]
[1759461230916,1.9675,4536.7,4536.2,0.0912]
[1759461231217,1.7465,4536.3,4536.2,1.3347]
[1759461231519,1.9675,4536.3,4536.2,1.7429]
[1759461238922,0.7094,4536.3,4536.2,1.7429]
[1759461239323,1.9675,4536.3,4536.2,1.7429]
[1759461239926,1.2257,4536.3,4536.2,1.7429]
[1759461241624,2.0078,4536.3,4536.2,1.7429]
[1759461244422,2.0078,4536.3,4536.1,0.00261774]
[1759461246021,0.9716,4535.1,4534.6,0.7847]
[1759461246221,0.9716,4535.1,4534.5,0.9881]
[1759461246222,1.7537,4534.6,4534.5,0.9881]
[1759461246522,1.9747,4534.6,4534.5,0.9881]
[1759461246921,1.97631702,4534.6,4534.5,1.77525832]
[1759461249026,1.97631702,4534.6,4534.5,0.49415832]
[1759461249624,1.97631702,4534.6,4534.5,0.00245832]
[1759461249926,6.93651893,4534.6,4534.5,0.00245832]
[1759461251522,0.4871,4534.0,4533.9,0.7847]
[1759461251724,5.478,4534.0,4533.9,1.2937]
[1759461251919,5.478,4534.0,4533.9,0.509]
[1759461252130,5.478,4534.0,4533.1,0.7847]
[1759461252629,5.478,4534.0,4533.1,0.78688124]
[1759461253130,5.478,4534.0,4533.9,0.509]
[1759461253630,5.1825,4534.0,4533.9,1.7901]
[1759461255430,5.478,4534.0,4533.9,1.7901]
[1759461255731,5.478,4534.0,4533.9,0.509]
[1759461255929,5.478,4534.0,4533.6,0.7847]
[1759461256124,5.478,4534.0,4533.2,0.7847]
[1759461258726,5.478,4534.0,4533.9,1.7901]
[1759461258931,0.4871,4534.0,4533.9,1.7901]
[1759461259127,3.5033,4534.5,4534.1,1.7901]
[1759461259330,0.4871,4534.3,4534.2,0.7847]
[1759461259528,1.2692,4534.3,4534.2,1.7901]
[1759461260434,0.4871,4534.3,4534.2,1.7901]
[1759461260632,1.2692,4534.3,4534.2,1.7901]
[1759461261427,1.7537,4534.3,4533.6,0.7847]
[1759461261733,1.7537,4533.9,4533.8,1.7901]
[1759461262033,1.9747,4533.9,4533.8,1.7901]
[1759461264230,0.7081,4533.9,4533.8,1.7901]
[1759461264632,1.1926,4533.9,4533.8,1.7901]
[1759461264836,1.1926,4533.9,4532.9,3.22986118]
[1759461264837,1.7728,4533.2,4532.5,0.7157]
[1759461265133,1.263,4533.4,4533.3,1.7012]
[1759461265430,0.7166,4533.4,4533.3,1.7012]
[1759461265630,1.9938,4533.4,4533.3,1.7012]
[1759461265836,0.221,4533.4,4533.3,1.70333954]
[1759461266534,0.7166,4533.4,4533.3,1.70333954]
[1759461267534,0.221,4533.4,4533.3,1.70333954]
[1759461268134,0.221,4533.5,4533.4,0.7157]
[1759461268332,0.221,4533.5,4533.4,1.7012]
[1759461268939,0.7166,4533.5,4533.4,1.7012]
[1759461269439,1.484,4533.5,4533.4,1.7012]
[1759461270137,0.7166,4533.5,4533.4,1.7012]
[1759461271236,0.5046,4534.0,4533.9,1.7012]
[1759461271633,0.2836,4534.0,4533.9,1.7012]
[1759461272337,0.5046,4534.0,4533.9,1.7012]
[1759461273540,0.2836,4534.0,4533.9,1.7012]
[1759461275838,0.7917,4534.0,4533.9,1.7012]
[1759461276140,2.3436,4534.0,4533.9,1.7012]
[1759461276638,2.0445,4534.0,4533.9,1.7012]
[1759461276939,2.2655,4534.0,4533.9,1.7012]
[1759461277333,2.0445,4534.0,4533.9,1.7012]
[1759461277529,2.2655,4534.0,4533.9,1.7012]
[1759461283445,2.5646,4534.0,4533.9,1.7012]
[1759461286443,2.5646,4534.0,4533.9,0.5156]
[1759461286746,2.5646,4534.0,4533.9,1.2807]
[1759461287249,2.5646,4534.0,4533.4,0.7651]
[1759461287740,2.5646,4534.0,4533.9,0.5103]
[1759461288346,2.5646,4534.0,4533.9,1.2754]
[1759461288942,2.2655,4534.0,4533.9,1.7759]
[1759461289144,0.2836,4534.0,4533.9,1.7759]
[1759461289445,0.5046,4534.0,4533.9,1.7759]
[1759461290351,2.5646,4534.0,4533.9,1.7759]
[1759461291253,2.5646,4534.0,4533.9,1.0108]
[1759461291751,2.2655,4534.0,4533.9,1.7759]
[1759461291956,1.0127,4534.0,4533.9,1.7759]
[1759461292156,2.5646,4534.0,4533.9,0.5103]
[1759461292353,2.2655,4534.0,4533.9,1.7759]
[1759461292557,1.0127,4534.0,4533.9,1.7759]
[1759461294063,0.5046,4534.0,4533.9,1.7759]
[1759461294462,0.2836,4534.0,4533.9,1.7759]
[1759461297363,0.2836,4534.0,4533.9,6.7759]
[1759461297567,1.75401893,4534.6,4534.5,2.0629]
[1759461297568,0.00161702,4534.6,4534.5,2.0629]
[1759461297863,0.00161702,4534.6,4534.5,5.2707]
[1759461298070,0.00161702,4534.6,4534.5,10.2707]
[1759461298670,0.00161702,4534.6,4534.5,10.4917]
[1759461300568,3.2078,4535.4,4534.5,10.4917]
[1759461300771,3.2078,4535.4,4535.3,1.7759]
[1759461300969,4.9687,4535.4,4534.9,0.7651]
[1759461301170,0.5081,4534.3,4534.2,1.2754]
[1759461301373,1.7609,4534.3,4534.2,0.5103]
[1759461301668,0.00271409,4534.3,4534.1,0.7713]
[1759461301872,0.00271409,4534.3,4534.2,1.7545]
[1759461302977,0.48461409,4534.3,4534.2,1.7545]
[1759461303173,0.48461409,4534.3,4533.4,3.2078]
[1759461303174,0.2856,4534.0,4533.4,3.2078]
[1759461303367,1.1967,4533.5,4533.4,4.9623]
[1759461303674,1.6935,4533.5,4533.4,4.9623]
[1759461304978,0.4819,4533.6,4533.5,1.7545]
[1759461305177,1.1967,4533.6,4533.5,1.7545]
[1759461306068,1.6935,4533.6,4533.5,1.7545]
[1759461307776,1.6935,4533.6,4533.5,0.9832]
[1759461308177,1.6935,4533.6,4533.5,1.7545]